fUSD/lending_fUSD_20240109
["ID","MTS","AMOUNT","RATE_DAILY","PERIOD"]
[310969682,1704836073736,-156.05506461,0.00039874,4]
[310969683,1704836073746,-18954.0636608,0.00039874,4]
[310969684,1704836073760,-486.12115019,0.00039874,4]
[310969685,1704836073773,-4517.8897685,0.00039874,4]
[310969686,1704836076430,-406.58996431,0.00033217,2]
[310969687,1704836076442,-5835.47093569,0.00033217,2]
[310969688,1704836076451,-677.34550316,0.00034419,4]
[310969689,1704836076461,-2727.18356115,0.00034694,2]
[310969690,1704836077238,-72248.81603885,0.00034694,2]
[310969691,1704836077247,-2000.0,0.00036474,2]
[310969692,1704836077257,-2126.17282976,0.00036595,30]
[310969693,1704836077266,-151.01389363,0.00037795,7]
[310969694,1704836077276,-152.22288177,0.00038203,7]
[310969695,1704836077285,-788.73764149,0.00038676,4]
[310969696,1704836077295,-345.40406247,0.00039872,4]
[310969697,1704836077304,-1035.46717539,0.00039872,2]
[310969698,1704836077313,-643.47079089,0.00039872,4]
[310969699,1704836077322,-72518.43518264,0.00039872,4]
[310969700,1704836077331,-20778.83037632,0.00039873,4]
[310969701,1704836077340,-33727.84455736,0.00039874,4]
[310969702,1704836077350,-6630.89806796,0.00039874,4]
[310969703,1704836077359,-193.1662322,0.00039874,4]
[310969704,1704836077368,-127479.47137489,0.00039874,2]
[310969705,1704836077378,-33323.99902136,0.00039874,4]
[310969706,1704836077389,-155.43819632,0.00039874,4]
[310969707,1704836077400,-10053.6683638,0.00039874,3]
[310969708,1704836077410,-4618.23464796,0.00039874,4]
[310969709,1704836077420,-690.88379827,0.00039874,2]
[310969710,1704836077431,-493.17943564,0.0003988,2]
[310969711,1704836077440,-337.04705165,0.00039881,4]
[310969712,1704836077450,-1903.52482425,0.00039881,4]
[310969713,1704836077459,-728.49647398,0.00039881,4]
[310969714,1704836077469,-2306.41452154,0.00039881,4]
[310969715,1704836077479,-2315.14253384,0.00039881,4]
[310969716,1704836077490,-150.53,0.00039882,15]
[310969717,1704836077500,-361.89401347,0.00039889,30]
[310969718,1704836077510,-3000.0,0.00039988,2]
[310969719,1704836077520,-270.62918177,0.00039999,4]
[310969720,1704836077529,-573.0,0.00039999,5]
[310969721,1704836077538,-5323.51441796,0.0004,10]
[310969722,1704836077548,-1048.8125563,0.0004,10]
[310969723,1704836077558,-5000.0,0.0004,3]
[310969724,1704836077567,-4483.75,0.0004,5]
[310969725,1704836077577,-219.90355198,0.00040178,2]
[310969726,1704836077587,-1035.63377813,0.00040273,3]
[310969727,1704836077598,-150.0,0.00040341,2]
[310969728,1704836077607,-3000.0,0.0004064,5]
[310969729,1704836077618,-339.38337859,0.00040684,2]
[310969730,1704836077628,-500.0,0.00040699,30]
[310969731,1704836077639,-3039.738507,0.00040889,2]
[310969732,1704836077649,-3000.0,0.00041,11]
[310969733,1704836077659,-3000.0,0.00041,22]
[310969734,1704836077669,-15948.07011593,0.00041,2]
[310969735,1704836078099,-1000.0,0.000349,2]
[310969736,1704836078109,-588.43857689,0.00040684,2]
[310969737,1704836078121,-558.34000132,0.00040684,2]
[310969738,1704836078130,-339.81354793,0.00041,2]
[310969739,1704836078142,-367.06866657,0.00041,2]
[310969740,1704836078157,-140850.0,0.00041,2]
[310969741,1704836078181,-649.7675,0.00039474,4]
[310969742,1704836078194,-17596.20208691,0.00039474,4]
[310969743,1704836078203,-5404.54901035,0.00041,2]
[310969744,1704836078216,-8027.48088628,0.00041,2]
[310969745,1704836078225,-808.8,0.00041,5]
[310969746,1704836078236,-405.37,0.00041,5]
[310969747,1704836078245,-5516.657379,0.0004101,22]
[310969748,1704836078255,-150.0,0.00041022,2]
[310969749,1704836078264,-400.0,0.00041084,2]
[310969750,1704836078274,-500.0,0.00041084,2]
[310969751,1704836078283,-500.0,0.00041084,2]
[310969752,1704836078293,-2562.66,0.00041085,10]
[310969753,1704836078303,-500.0,0.00041095,30]
[310969754,1704836078312,-500.0,0.00041095,30]
[310969755,1704836078322,-2375.52,0.00041095,30]
[310969756,1704836078331,-500.0,0.00041095,30]
[310969757,1704836078341,-3746.72,0.00041095,30]
[310969758,1704836078351,-500.0,0.00041095,30]
[310969759,1704836078360,-500.0,0.00041095,30]
[310969760,1704836078369,-500.0,0.00041095,30]
[310969761,1704836078379,-500.0,0.00041095,30]
[310969762,1704836078389,-500.0,0.00041095,30]
[310969763,1704836078398,-500.0,0.00041095,30]
[310969764,1704836078408,-500.0,0.00041095,30]
[310969765,1704836078418,-628.29178127,0.00041095,30]
[310969766,1704836078427,-500.0,0.00041095,30]
[310969767,1704836078436,-500.0,0.00041095,30]
[310969768,1704836078445,-500.0,0.00041095,30]
[310969769,1704836078455,-1719.96,0.00041095,30]
[310969770,1704836078464,-1183.38,0.00041095,30]
[310969771,1704836078473,-500.0,0.00041095,30]
[310969772,1704836078483,-162.154406,0.00041095,30]
[310969773,1704836078492,-500.0,0.00041095,30]
[310969774,1704836078502,-500.0,0.00041095,30]
[310969775,1704836078512,-500.0,0.00041095,30]
[310969776,1704836078522,-318.5734315,0.00041095,30]
[310969777,1704836078531,-500.0,0.00041095,30]
[310969778,1704836078541,-500.0,0.00041095,30]
[310969779,1704836078550,-500.0,0.00041095,30]
[310969780,1704836078559,-500.0,0.00041095,30]
[310969781,1704836078569,-500.0,0.00041095,30]
[310969782,1704836078579,-4672.07,0.00041095,30]
[310969783,1704836078589,-500.0,0.00041095,30]
[310969784,1704836078598,-500.0,0.00041095,30]
[310969785,1704836078608,-322.36211595,0.00041095,30]
[310969791,1704836101437,200.0,0.00029006,120]
[310969799,1704836282222,174.73,0.00020428,2]
[310969800,1704836335827,312.91933084,0.00020428,2]
[310969801,1704836336196,855.55482523,0.00020428,2]
[310969802,1704836353066,312.91933084,0.00020428,2]
[310969803,1704836358203,696.7511419,0.00020428,2]
[310969804,1704836369070,277.77256965,0.00020428,2]
[310969806,1704836408764,23900.0,0.0002242,2]
[310969808,1704836450364,2000.0,0.00022387,2]
[310969809,1704836453971,2705.0,0.00022398,2]
[310969810,1704836469647,838.1,0.00022442,2]
[310969811,1704836484203,1000.0,0.00022441,2]
[310969812,1704836487455,500.0,0.0002225,2]
[310969814,1704836489297,1076.93,0.0002225,2]
[310969815,1704836489889,214.21,0.0002225,2]
[310969816,1704836545824,200.0,0.00022279,2]
[310969817,1704836580591,200.0,0.00022384,2]
[310969818,1704836597256,500.0,0.0002238,2]
[310969819,1704836612959,173.06,0.00022223,2]
[310969820,1704836613295,173.06,0.00027779,120]
[310969822,1704836681177,166.52,0.00022129,10]
[310969823,1704836681424,166.52,0.00024297,10]
[310969824,1704836698689,466.8,0.00020194,2]
[310969825,1704836699296,466.8,0.00022458,2]
[310969827,1704836744394,5456.05,0.00022114,2]
[310969828,1704836759707,1852.42,0.00022118,2]
[310969830,1704836774809,156.82,0.0002234,2]
[310969831,1704836777364,150.0,0.00022163,2]
[310969832,1704836817064,250.0,0.00022058,2]
[310969833,1704836821327,167.0,0.00022032,2]
[310969834,1704836823802,500.0,0.000238,8]
[310969835,1704836825172,1100.0,0.000239,8]
[310969837,1704836836656,23900.0,0.0002205,2]
[310969839,1704836845051,154.87,0.00022069,2]
[310969840,1704836845109,154.87,0.00022385,2]
[310969841,1704836848648,519.56,0.00022069,2]
[310969842,1704836875445,171.19,0.00022068,2]
[310969843,1704836895000,812.13,0.00022059,2]
[310969844,1704836903554,377.16,0.00022048,2]
[310969845,1704836924371,954.02,0.00022034,2]
[310969846,1704836927427,2000.0,0.00022034,2]
[310969847,1704836942735,249.53,0.00022194,2]
[310969848,1704836942927,249.53,0.00022255,2]
[310969849,1704836943167,249.53,0.00022316,2]
[310969850,1704836943434,249.53,0.00022377,2]
[310969851,1704836943678,249.53,0.00022438,2]
[310969852,1704836943930,249.53,0.00022499,2]
[310969853,1704836954163,200.0,0.00021935,2]
[310969854,1704836962354,2705.0,0.00021935,2]
[310969855,1704836970894,-697.99122527,0.00022507,2]
[310969856,1704836970914,-497.81723291,0.00022508,2]
[310969857,1704836971129,-928.7227462,0.00022508,2]
[310969858,1704836971150,-376.20035464,0.00022509,2]
[310969859,1704836971173,-336.46323777,0.00022509,2]
[310969860,1704836971193,-2323.10367527,0.00022509,2]
[310969861,1704836971215,-383.92959954,0.0002251,2]
[310969862,1704836971235,-4479.63512611,0.0002251,2]
[310969863,1704836971260,-155.0,0.0002251,2]
[310969864,1704836971281,-155.0,0.0002251,2]
[310969865,1704836971305,-399.78999703,0.0002251,2]
[310969866,1704836971329,-161.484031,0.0002251,2]
[310969867,1704836971350,-262.89810804,0.00022511,2]
[310969868,1704836971375,-1254.29308321,0.00022511,2]
[310969869,1704836971400,-216.3980758,0.00022511,2]
[310969870,1704836971421,-419.14166426,0.00022512,2]
[310969871,1704836971443,-553.58213388,0.00022513,2]
[310969872,1704836971467,-270.32140913,0.00022513,2]
[310969873,1704836971491,-2775.44187928,0.00022513,2]
[310969874,1704836971514,-25170.24046112,0.00022513,2]
[310969875,1704836971535,-1254.29308321,0.00022514,2]
[310969876,1704836971555,-696.50758074,0.00022514,2]
[310969877,1704836971581,-155.0,0.00022514,2]
[310969878,1704836971604,-196.37114886,0.00022514,2]
[310969879,1704836971625,-5269.04963195,0.00022514,2]
[310969880,1704836971648,-752.90297296,0.00022514,2]
[310969881,1704836972915,356.02,0.00021923,2]
[310969882,1704836984685,713.9,0.00022069,2]
[310969883,1704836997238,200.0,0.00022063,2]
[310969901,1704837031917,-1254.29308321,0.00022506,2]
[310969902,1704837031927,-437.97263822,0.00022513,2]
[310969903,1704837031938,-288.94234682,0.00022513,2]
[310969904,1704837031950,-1682.8704383,0.00022513,2]
[310969905,1704837031962,-61.47454203,0.00022513,2]
[310969906,1704837031971,-326.39,0.00022514,2]
[310969907,1704837031980,-150.0,0.00022518,2]
[310969908,1704837031989,-2615.50147157,0.00022521,2]
[310969909,1704837031998,-814.78,0.00022522,2]
[310969910,1704837032007,-227.71051894,0.00022523,2]
[310969911,1704837032016,-1958.21,0.00022523,2]
[310969912,1704837032025,-406.55,0.00022534,2]
[310969913,1704837032034,-2771.6635,0.00022545,2]
[310969914,1704837032045,-249.53,0.0002256,2]
[310969915,1704837032055,-441.06129735,0.00022608,2]
[310969916,1704837032064,-5240.02,0.00022608,2]
[310969917,1704837032073,-249.53,0.00022621,2]
[310969918,1704837032083,-299.93588338,0.00022628,2]
[310969919,1704837032092,-249.53,0.00022681,2]
[310969920,1704837032101,-154.87,0.000227,2]
[310969921,1704837032111,-249.53,0.00022742,2]
[310969922,1704837032120,-303.76,0.00022779,2]
[310969923,1704837032129,-160.11,0.0002278,2]
[310969924,1704837032139,-249.53,0.00022803,2]
[310969925,1704837032148,-249.53,0.00022864,2]
[310969926,1704837032157,-249.53,0.00022925,2]
[310969927,1704837032166,-249.53,0.00022986,2]
[310969928,1704837032174,-932.39338065,0.00023014,2]
[310969929,1704837032184,-154.87,0.00023015,2]
[310969930,1704837032193,-812.13,0.00023037,2]
[310969931,1704837032202,-249.53,0.00023047,2]
[310969932,1704837032211,-200.0,0.00023096,2]
[310969933,1704837032220,-249.53,0.00023108,2]
[310969934,1704837032229,-546.42,0.00023134,2]
[310969935,1704837032238,-377.16,0.00023151,2]
[310969936,1704837032247,-249.53,0.00023168,2]
[310969937,1704837032257,-249.53,0.00023229,2]
[310969938,1704837032266,-249.53,0.0002329,2]
[310969939,1704837032275,-1065.38791826,0.00023314,2]
[310969940,1704837032306,-5120.32829082,0.00023314,2]
[310969941,1704837032317,-279.69657276,0.00023314,2]
[310969942,1704837032328,-1928.53811788,0.00023314,2]
[310969943,1704837032337,-154.87,0.0002333,2]
[310969945,1704837032347,-249.53,0.00023351,2]
[310969947,1704837032357,-417.584,0.00023453,2]
[310969949,1704837032366,-1069.6966,0.00023453,2]
[310969951,1704837032375,-195.07122017,0.00023453,2]
[310969953,1704837032385,-5404.84366656,0.00023453,2]
[310969955,1704837032394,-167.16774484,0.00023542,2]
[310969957,1704837032403,-399.43627963,0.0002355,2]
[310969959,1704837032412,-232.75222614,0.0002355,2]
[310969961,1704837032422,-507.72143321,0.0002355,2]
[310969963,1704837032432,-155.0,0.0002355,2]
[310969965,1704837032441,-159.87160544,0.0002355,2]
[310969967,1704837032450,-334.41659857,0.0002355,2]
[310969969,1704837032460,-196.13911173,0.0002355,2]
[310969971,1704837032470,-264.62205712,0.0002355,2]
[310969973,1704837032478,-2323.10367527,0.0002355,2]
[310969975,1704837032488,-1011.71719336,0.0002355,2]
[310969979,1704837032519,-229.41960463,0.0002355,2]
[310969981,1704837032529,-1428.07088878,0.0002355,2]
[310969983,1704837032538,-222.24117306,0.0002355,2]
[310969985,1704837032553,-19.70848497,0.0002355,2]
[310969987,1704837032564,-950.77693046,0.0002355,2]
[310969989,1704837032575,-1361.32226277,0.0002355,2]
[310969991,1704837032584,-428.79564639,0.00023551,2]
[310969992,1704837032593,-1830.39542682,0.00023551,2]
[310969993,1704837032602,-292.07537104,0.00023551,2]
[310969994,1704837032612,-268.77411961,0.00023551,2]
[310969995,1704837032620,-382.21367003,0.00023551,2]
[310969996,1704837032629,-345.47752639,0.00023552,2]
[310969997,1704837032638,-4060.15098549,0.00023552,2]
[310969998,1704837032652,-22849.5,0.00023552,2]
[310969999,1704837032664,-299.84,0.00023552,2]
[310970000,1704837032843,-2594.97506282,0.00023552,2]
[310970001,1704837032855,-550.0,0.00023552,2]
[310970002,1704837032866,-3248.19528749,0.00023552,2]
[310970003,1704837032878,-230500.00000005,0.00023552,2]
[310970004,1704837032922,-2310.99156271,0.00023552,2]
[310970005,1704837032934,-1270.173871,0.00023552,2]
[310970006,1704837032945,-576.24489012,0.00023552,2]
[310970007,1704837032961,-23028.2303901,0.00023552,2]
[310970008,1704837032973,-1295.880596,0.00023552,2]
[310970009,1704837032993,-5575.11938621,0.00023552,2]
[310970041,1704837037790,-359.04977581,0.00023453,2]
[310970042,1704837037803,-1030.42503419,0.00023552,2]
[310970043,1704837037860,-271.5,0.00023552,2]
[310970044,1704837037872,-780.06212996,0.00023552,2]
[310970045,1704837037969,-3871.13371545,0.00023552,2]
[310970046,1704837038077,-1978.21002123,0.00023552,2]
[310970047,1704837038090,-13561.6927139,0.00023552,2]
[310970048,1704837038148,-3389.0063296,0.00023552,2]
[310970051,1704837038159,-2301.1932,0.00023552,2]
[310970243,1704837040209,-5991.54019875,0.00023552,2]
[310970246,1704837040221,-911.09229182,0.00023552,2]
[310970256,1704837043638,-588.2173188,0.00023552,2]
[310970259,1704837043650,-880.61714538,0.00023552,2]
[310970262,1704837043675,-838.67999984,0.00023552,2]
[310970264,1704837043686,-45723.52928004,0.00023552,2]
[310970265,1704837043702,-92055.20000002,0.00023552,2]
[310970267,1704837043770,-22932.94990981,0.00023552,2]
[310970272,1704837043786,-9173.1643,0.00023552,2]
[310970282,1704837043868,-292.23125739,0.00023552,2]
[310970292,1704837043949,-2999.41453214,0.00023552,2]
[310970295,1704837043961,-5793.40959966,0.00023552,2]
[310970299,1704837043996,-779.75195085,0.00023552,2]
[310970304,1704837044039,-386.96454,0.00023552,2]
[310970310,1704837044090,-936.40070905,0.00023552,2]
[310970311,1704837044102,-5073.95000019,0.00023552,2]
[310970312,1704837044114,-765.64066105,0.00023552,2]
[310970313,1704837044395,-2497.53503162,0.00023552,2]
[310970316,1704837044406,-258.3448,0.00023552,2]
[310970460,1704837045817,-1820.77162478,0.00023551,2]
[310970462,1704837045827,-756.19648469,0.00023551,2]
[310970464,1704837045836,-814.51784839,0.00023552,2]
[310970466,1704837045848,-54918.09255841,0.00023552,2]
[310970490,1704837047932,-1254.29308321,0.00023551,2]
[310970491,1704837047942,-1262.12239453,0.00023552,2]
[310970492,1704837047961,-37622.29816522,0.00023552,2]
[310970493,1704837047984,-2766.39563642,0.00023552,2]
[310970494,1704837047995,-1620.99283175,0.00023552,2]
[310970495,1704837048007,-62676.18264376,0.00023552,2]
[310970496,1704837048019,-195863.00793193,0.00023552,2]
[310970497,1704837048031,-399.61313833,0.00023552,2]
[310970498,1704837048042,-4606.57661202,0.00023552,2]
[310970499,1704837048085,-643.97892178,0.00023551,2]
[310970500,1704837048096,-1679.12475349,0.00023551,2]
[310970501,1704837048105,-3353.07924178,0.00023552,2]
[310970502,1704837048333,-520.81578593,0.00023552,2]
[310970503,1704837048344,-369.77238729,0.00023552,2]
[310970504,1704837048355,-164070.19564923,0.00023552,2]
[310970505,1704837048365,-5202.77753858,0.00023553,2]
[310970506,1704837048376,-8777.6194879,0.00023553,2]
[310970507,1704837048387,-11183.09638132,0.00023553,2]
[310970508,1704837048412,-99534.81658411,0.00023553,2]
[310970510,1704837048421,-154.87,0.00023646,2]
[310970512,1704837048430,-154.87,0.00023961,2]
[310970514,1704837048439,-9113.5720963,0.00023996,2]
[310970516,1704837048449,-812.13,0.00024016,2]
[310970517,1704837048458,-188.7297,0.00024096,2]
[310970518,1704837048467,-202184.7972,0.00024096,2]
[310970519,1704837048476,-28393.66774273,0.00024188,2]
[310970520,1704837048486,-5085.2560873,0.00024196,2]
[310970521,1704837048495,-190.00550758,0.00024197,2]
[310970522,1704837048504,-306.97180835,0.00024198,2]
[310970523,1704837048513,-155.0,0.00024199,2]
[310970524,1704837048522,-377.16,0.00024253,2]
[310970525,1704837048531,-154.87,0.00024276,2]
[310970526,1704837048540,-150.0,0.000243,2]
[310970527,1704837048550,-250.0,0.00024658,2]
[310970528,1704837048563,-466.8,0.00024722,2]
[310970529,1704837048572,-954.02,0.00024788,2]
[310970530,1704837048582,-812.13,0.00024994,2]
[310970531,1704837048592,-691.04005445,0.00025,2]
[310970532,1704837048602,-816.99082882,0.00025,2]
[310970533,1704837048610,-1037.48862494,0.00025,2]
[310970534,1704837048620,-348.67776234,0.00025,2]
[310970535,1704837048629,-174.26,0.00025042,2]
[310970536,1704837048637,-1000.0,0.00025246,2]
[310970537,1704837048646,-421.22,0.00025303,2]
[310970538,1704837048655,-377.16,0.00025356,2]
[310970539,1704837048663,-421.22,0.00025436,2]
[310970540,1704837048672,-359.04977579,0.00025526,2]
[310970541,1704837048681,-421.22,0.00025569,2]
[310970542,1704837048691,-9113.57209627,0.00025586,2]
[310970543,1704837048700,-157.75,0.00025672,2]
[310970544,1704837048709,-421.22,0.00025703,2]
[310970545,1704837048718,-1996.88,0.00025756,2]
[310970546,1704837048728,-421.22,0.00025836,2]
[310970547,1704837048737,-421.22,0.00025969,2]
[310970548,1704837048747,-812.13,0.00025972,2]
[310970549,1704837048757,-150.0,0.00026079,2]
[310970550,1704837048766,-421.22,0.00026102,2]
[310970551,1704837048779,-167.0,0.00026105,2]
[310970552,1704837048787,-157.75,0.00026111,2]
[310970553,1704837048796,-421.22,0.00026235,2]
[310970554,1704837048809,-421.22,0.00026368,2]
[310970555,1704837048818,-322.24368922,0.0002639,2]
[310970556,1704837048827,-322.24368922,0.0002639,2]
[310970557,1704837048837,-377.16,0.00026458,2]
[310970558,1704837048847,-421.22,0.00026502,2]
[310970559,1704837048856,-157.75,0.0002655,2]
[310970560,1704837048865,-14763.27,0.00026575,2]
[310970561,1704837048874,-421.22,0.00026635,2]
[310970562,1704837048883,-214.21,0.000267,2]
[310970563,1704837048892,-421.22,0.00026768,2]
[310970564,1704837048901,-421.22,0.00026901,2]
[310970565,1704837048910,-812.13,0.00026951,2]
[310970566,1704837048920,-466.8,0.00026986,2]
[310970567,1704837048929,-157.75,0.00026989,2]
[310970568,1704837048938,-421.22,0.00027034,2]
[310970569,1704837048947,-421.22,0.00027167,2]
[310970570,1704837048956,-9113.57209627,0.00027177,2]
[310970571,1704837048965,-421.22,0.00027301,2]
[310970572,1704837048974,-155.0,0.00027397,2]
[310970573,1704837048984,-500.0,0.00027397,2]
[310970574,1704837048993,-250.0,0.00027397,2]
[310970575,1704837049004,-250.0,0.000274,2]
[310970576,1704837049014,-157.75,0.00027428,2]
[310970577,1704837049023,-421.22,0.00027434,2]
[310970578,1704837049032,-167.0,0.00027541,2]
[310970579,1704837049042,-954.02,0.00027542,2]
[310970580,1704837049051,-421.22,0.00027567,2]
[310970581,1704837049066,-359.04977579,0.00027598,2]
[310970582,1704837049075,-1266.4749,0.00027648,2]
[310970583,1704837049084,-421.22,0.000277,2]
[310970584,1704837049093,-360.54533661,0.0002775,2]
[310970585,1704837049103,-2263.96943386,0.0002775,2]
[310970586,1704837049112,-235.98748933,0.0002775,2]
[310970587,1704837049122,-1115.77421501,0.00027751,7]
[310970588,1704837049131,-249.73147916,0.00027753,2]
[310970589,1704837049140,-4509.10397313,0.00027753,2]
[310970590,1704837049150,-462.88672125,0.00027753,2]
[310970591,1704837049159,-196.30617543,0.00027753,2]
[310970592,1704837049168,-1117.36549166,0.00027753,2]
[310970593,1704837049178,-359.42620612,0.00027754,2]
[310970594,1704837049187,-421.22,0.00027833,2]
[310970595,1704837049196,-157.75,0.00027867,2]
[310970596,1704837049205,-812.13,0.00027929,2]
[310970597,1704837049214,-687.02354933,0.00028,2]
[310970598,1704837049223,-1000.0,0.00028051,2]
[310970599,1704837049233,-157.75,0.00028306,2]
[310970600,1704837049242,-160.11,0.00028475,2]
[310970601,1704837049251,-157.75,0.00028745,2]
[310970602,1704837049260,-9113.57209627,0.00028767,2]
[310970603,1704837049269,-155.0,0.00028767,2]
[310970604,1704837049279,-812.13,0.00028908,2]
[310970605,1704837049288,-167.0,0.00028978,2]
[310970606,1704837049297,-157.75,0.00029184,2]
[310970607,1704837049308,-466.8,0.0002925,2]
[310970608,1704837049317,-174.26,0.00029601,2]
[310970609,1704837049326,-157.75,0.00029623,2]
[310970610,1704837049336,-359.04977579,0.00029671,2]
[310970611,1704837049345,-812.13,0.00029886,2]
[310970612,1704837049354,-1600.0,0.000299,10]
[310970613,1704837049364,-318.51528429,0.000299,2]
[310970614,1704837049373,-822.52080075,0.000299,2]
[310970615,1704837049384,-234.86576437,0.000299,2]
[310970616,1704837049393,-450.84222088,0.000299,2]
[310970617,1704837049402,-554.11987898,0.0002998,3]
[310970618,1704837049411,-439.82509553,0.0002998,3]
[310970619,1704837049420,-493.68361252,0.00029993,2]
[310970620,1704837049430,-265.7489314,0.00029994,2]
[310970621,1704837049439,-263.40473358,0.00029994,2]
[310970622,1704837049448,-284.48599854,0.00029994,2]
[310970623,1704837049457,-754.79169806,0.00029994,2]
[310970624,1704837049466,-2985.98305307,0.00029994,2]
[310970625,1704837049476,-4151.89837258,0.00029994,2]
[310970626,1704837049485,-275.98246239,0.00029994,2]
[310970627,1704837049495,-29175.3782454,0.00029996,2]
[310970628,1704837049504,-13758.40676925,0.00029996,2]
[310970629,1704837049513,-2422.41560372,0.00029996,4]
[310970630,1704837049522,-155.0,0.00029996,2]
[310970631,1704837049531,-22868.2057526,0.00029997,2]
[310970632,1704837049541,-155.0,0.00029998,2]
[310970633,1704837049550,-234.75807585,0.00029998,2]
[310970634,1704837049562,-214.7697369,0.00029998,2]
[310970635,1704837049571,-418.76500977,0.00029998,2]
[310970636,1704837049580,-155.0,0.00029998,2]
[310970637,1704837049589,-3185.21463735,0.00029999,2]
[310970638,1704837049599,-1000.0,0.00029999,2]
[310970639,1704837049608,-163.14,0.00029999,2]
[310970640,1704837049617,-163.14,0.00029999,2]
[310970641,1704837049626,-163.14,0.00029999,2]
[310970642,1704837049636,-155.9433981,0.0003,4]
[310970643,1704837049645,-525.72214603,0.0003,4]
[310970644,1704837049654,-53738.62967907,0.0003,4]
[310970645,1704837049668,-230949.99999995,0.0003,4]
[310970646,1704837049679,-12138.48430119,0.0003,4]
[310970647,1704837051323,-215.60720017,0.00023551,2]
[310970648,1704837051333,-444.58691235,0.0003,4]
[310970649,1704837051345,-10935.43470179,0.0003,4]
[310970650,1704837051355,-2733.58668761,0.0003,2]
[310970651,1704837051365,-9620.12645151,0.0003,2]
[310970652,1704837051375,-72760.18603204,0.0003,4]
[310970653,1704837051385,-155.0,0.0003,2]
[310970654,1704837051394,-677.34550316,0.0003,4]
[310970655,1704837051404,-812.36799642,0.0003,4]
[310970656,1704837051413,-8820.13193683,0.0003,4]
[310970657,1704837051423,-17049.0,0.0003,4]
[310970658,1704837051433,-4223.0,0.0003,4]
[310970659,1704837051442,-154.0,0.0003,2]
[310970660,1704837051453,-154.0,0.0003,2]
[310970661,1704837051462,-450.0,0.0003002,3]
[310970662,1704837051472,-450.0,0.0003002,3]
[310970663,1704837051482,-157.75,0.00030063,2]
[310970664,1704837051491,-10000.0,0.00030137,2]
[310970665,1704837051501,-153.84,0.00030137,2]
[310970666,1704837051511,-500.0,0.00030137,2]
[310970670,1704837051521,-155.0,0.00030137,2]
[310970672,1704837051531,-954.02,0.00030296,2]
[310970677,1704837051542,-9113.57209627,0.00030357,2]
[310970680,1704837051552,-167.0,0.00030414,2]
[310970682,1704837051563,-157.75,0.00030502,2]
[310970685,1704837051572,-151.0,0.00030773,120]
[310970688,1704837051583,-175.96,0.000308,2]
[310970691,1704837051592,-223.20855706,0.000308,2]
[310970693,1704837051602,-500.0,0.000308,2]
[310970694,1704837051611,-256.27,0.000308,7]
[310970695,1704837051620,-1000.0,0.00030856,2]
[310970696,1704837051630,-812.13,0.00030865,2]
[310970697,1704837051639,-713.9,0.00030896,2]
[310970698,1704837051648,-256.27,0.00030937,7]
[310970699,1704837051658,-200.0,0.00031,5]
[310970700,1704837051667,-150.0,0.00031,2]
[310970701,1704837051678,-150.0,0.00031,2]
[310970702,1704837051688,-150.0,0.00031,2]
[310970703,1704837051698,-150.0,0.00031,2]
[310970704,1704837051708,-150.0,0.00031,2]
[310970705,1704837051718,-150.0,0.00031,2]
[310970706,1704837051727,-150.0,0.00031,2]
[310970707,1704837051737,-150.0,0.00031,2]
[310970708,1704837051747,-150.0,0.00031,2]
[310970709,1704837051756,-150.0,0.00031,2]
[310970710,1704837051768,-150.0,0.00031,2]
[310970711,1704837051777,-150.0,0.00031,2]
[310970712,1704837051786,-150.0,0.00031,2]
[310970713,1704837051794,-150.0,0.00031,2]